bitfinex/quotes_SOLUSD_20240821
["timestamp","ask_amount","ask_price","bid_price","bid_amount"]
[1724243635716,7.0404,142.04,141.98,7.0431]
[1724243635892,7.0404,142.04,141.99,45.25098]
[1724243636314,7.0404,142.04,141.99,46.65923511]
[1724243636904,15.8037,142.06,141.99,46.65923511]
[1724243637106,20.0,142.05,141.99,1.65923511]
[1724243637621,20.0,142.05,141.99,0.25098]
[1724243637917,27.0399,142.05,141.99,0.25098]
[1724243638130,7.0403,142.04,141.99,0.25098]
[1724243639012,7.0403,142.04,141.99,1.65927037]
[1724243639321,7.0403,142.04,141.99,0.25098]
[1724243639537,7.0403,142.04,141.99,1.65926553]
[1724243640527,7.0403,142.04,141.99,0.25098]
[1724243640708,7.0408,142.03,141.99,0.25098]
[1724243641112,7.0412,142.02,141.96,17.6097]
[1724243641422,7.0409,142.03,141.96,24.6539]
[1724243642515,7.0409,142.03,141.97,52.29458]
[1724243642827,20.0,142.05,141.97,52.29458]
[1724243642828,7.0404,142.04,141.97,73.70286182]
[1724243643028,27.0398,142.05,141.98,7.043]
[1724243643333,7.0398,142.05,141.99,46.65918838]
[1724243643831,7.0398,142.05,141.99,53.70188838]
[1724243644737,7.0398,142.05,141.99,52.29368]
[1724243645125,7.0398,142.05,142.0,1.4081826]
[1724243645332,7.0398,142.05,142.01,0.25098]
[1724243646233,15.8037,142.06,142.0,0.12549]
[1724243646234,7.0404,142.04,142.0,0.12549]
[1724243646408,7.0408,142.03,141.97,7.0434]
[1724243647326,7.0413,142.02,141.96,17.6097]
[1724243647711,7.0413,142.02,141.96,24.6539]
[1724243648114,33.36,142.04,141.96,24.6539]
[1724243648543,13.35,142.04,141.97,1.40848964]
[1724243648742,13.35,142.04,141.98,0.12549]
[1724243649043,13.35,142.04,141.97,0.12549]
[1724243649044,13.35,142.04,141.97,0.25098]
[1724243649827,7.0416,142.02,141.97,0.25098]
[1724243650027,7.0416,142.02,141.97,1.65947322]
[1724243650244,7.0416,142.02,141.97,0.25098]
[1724243651737,7.0418,142.01,141.97,0.25098]
[1724243652058,7.0418,142.01,141.96,45.25098]
[1724243652246,7.0418,142.01,141.95,7.0445]
[1724243652448,13.35,142.02,141.94,21.872]
[1724243652449,13.35,142.0,141.94,21.872]
[1724243652636,20.3923,142.0,141.94,21.872]
[1724243653643,7.0423,142.0,141.94,28.9171]
[1724243653829,13.35,142.02,141.95,45.25098]
[1724243654026,27.0421,142.01,141.95,45.25098]
[1724243655357,7.0423,142.0,141.95,45.25098]
[1724243655755,7.0423,142.0,141.95,0.25098]
[1724243656135,7.0428,141.99,141.95,0.25098]
[1724243656551,7.0433,141.98,141.91,28.26938769]
[1724243656960,7.0437,141.97,141.91,7.0463]
[1724243658558,7.0437,141.97,141.92,0.25098]
[1724243659056,20.3934,141.98,141.92,0.25098]
[1724243660063,7.0434,141.98,141.92,0.25098]
[1724243660960,7.0434,141.98,141.92,7.29708]
[1724243661463,7.0434,141.98,141.92,0.25098]
[1724243661660,7.0434,141.98,141.92,45.25098]
[1724243661857,7.0434,141.98,141.92,0.25098]
[1724243662163,7.0434,141.98,141.92,45.25098]
[1724243662360,7.0439,141.97,141.92,0.25098]
[1724243662559,7.0439,141.97,141.91,45.25098]
[1724243663339,7.0443,141.96,141.91,45.25098]
[1724243663544,7.0443,141.96,141.91,0.25098]
[1724243664554,13.35,141.98,141.9,17.617]
[1724243664763,7.0452,141.94,141.87,33.1283]
[1724243665842,7.0452,141.94,141.88,7.0482]
[1724243666162,7.0448,141.95,141.89,1.40937448]
[1724243666371,7.0448,141.95,141.89,8.45707448]
[1724243666571,7.0448,141.95,141.88,33.35]
[1724243666869,7.0448,141.95,141.88,40.3978]
[1724243667362,7.0448,141.95,141.89,45.0]
[1724243667557,7.0448,141.95,141.9,0.25098]
[1724243669957,13.35,141.94,141.87,15.5073]
[1724243670168,13.35,141.94,141.84,40.3041]
[1724243670169,7.0468,141.91,141.84,40.3041]
[1724243670463,13.35,141.92,141.84,15.6298]
[1724243670644,20.0,141.91,141.84,15.6298]
[1724243670847,7.0473,141.9,141.84,15.6298]
[1724243672543,7.0473,141.9,141.85,0.12549]
[1724243672748,27.0468,141.91,141.85,1.53522342]
[1724243672949,27.0468,141.91,141.86,0.12549]
[1724243673150,20.0,141.91,141.86,34.88500552]
[1724243673356,7.0458,141.93,141.87,45.12549]
[1724243673559,20.0,141.92,141.88,0.12549]
[1724243673849,20.0,141.92,141.87,0.12549]
[1724243674263,20.0,141.92,141.87,1.53498548]
[1724243674594,27.0463,141.92,141.87,0.12549]
[1724243674865,27.0463,141.92,141.87,1.534997]
[1724243675578,27.0463,141.92,141.87,0.12549]
[1724243676755,27.0463,141.92,141.87,1.5350307]
[1724243676951,20.0,141.92,141.88,0.12549]
[1724243677271,7.0448,141.95,141.88,7.17359]
[1724243677582,20.0,141.94,141.89,1.53480158]
[1724243678087,27.0453,141.94,141.89,1.53480158]
[1724243678402,20.0,141.94,141.89,1.53480158]
[1724243678685,20.0,141.94,141.9,0.12549]
[1724243678902,20.0,141.94,141.9,1.53473791]
[1724243679210,438.8266,142.0,141.9,1.53473791]
[1724243679371,7.044,141.97,141.91,0.12549]
[1724243679581,7.044,141.97,141.91,45.12549]
[1724243679813,7.0443,141.96,141.92,1.53456151]
[1724243680478,7.0443,141.96,141.92,0.12549]
[1724243681868,7.0443,141.96,141.91,0.12549]
[1724243682091,7.0447,141.95,141.89,32.7871]
[1724243682820,7.0444,141.96,141.9,1.40931735]
[1724243682970,33.42,141.98,141.9,1.40931735]
[1724243683305,7.0444,141.96,141.9,1.40931735]
[1724243683490,7.0444,141.96,141.91,0.25098]
[1724243684603,7.0447,141.95,141.91,0.25098]
[1724243685921,7.0444,141.96,141.91,0.25098]
[1724243688710,7.0444,141.96,141.92,1.40912027]
[1724243688896,27.0437,141.97,141.91,46.66010027]
[1724243689095,27.0437,141.97,141.91,1.66010027]
[1724243690398,7.0443,141.96,141.91,0.25098]
[1724243691512,20.0,141.97,141.92,24.6613]
[1724243691826,20.0,141.98,141.93,1.65993117]
[1724243692013,27.0432,141.98,141.93,1.65993117]
[1724243693405,33.42,142.02,141.93,1.65992864]
[1724243693621,7.0424,142.0,141.93,53.70522864]
[1724243694545,7.0418,142.01,141.95,15.7394]
[1724243694709,7.0418,142.01,141.96,1.65961453]
[1724243694914,7.0412,142.02,141.96,1.65961453]
[1724243696320,7.0412,142.02,141.96,46.65961453]
[1724243697327,7.0418,142.01,141.96,0.25098]
[1724243698429,7.0418,142.01,141.96,1.65966796]
[1724243698742,7.0418,142.01,141.96,0.25098]
[1724243699747,7.0422,142.0,141.95,15.7394]
[1724243700448,7.0427,141.99,141.95,15.7394]
[1724243701348,7.0432,141.98,141.93,6.37]
[1724243702223,20.3928,141.99,141.93,6.37]
[1724243702458,7.0433,141.98,141.93,7.77893482]
[1724243702742,7.0429,141.99,141.93,7.77893482]
[1724243702944,7.0429,141.99,141.94,0.25098]
[1724243703116,7.0432,141.98,141.94,0.12549]
[1724243703319,7.0432,141.98,141.93,6.37]
[1724243704346,13.35,141.99,141.93,6.37]
[1724243704528,7.0441,141.97,141.93,6.37]
[1724243705515,7.0434,141.98,141.93,6.37]
[1724243706232,7.0434,141.98,141.93,7.77893063]
[1724243707850,7.0434,141.98,141.93,6.37]
[1724243711431,7.0434,141.98,141.87,8.23205647]
[1724243711432,13.35,141.95,141.89,6.4114]
[1724243712230,13.35,141.93,141.89,6.4114]
[1724243712430,13.35,141.93,141.88,15.5663]
[1724243713032,7.0467,141.91,141.88,15.5663]
[1724243714027,7.0467,141.91,141.85,29.2144]
[1724243714226,7.0467,141.91,141.85,22.1648]
[1724243714432,7.0467,141.91,141.86,0.25098]
[1724243714729,7.0467,141.91,141.85,22.1648]
[1724243714730,7.0472,141.9,141.85,22.1648]
[1724243715152,17.6148,141.93,141.82,15.3708]
[1724243715368,13.35,141.89,141.82,15.3708]
[1724243716067,7.0482,141.88,141.82,15.3708]
[1724243717571,20.3977,141.89,141.82,22.4218]
[1724243717752,7.0477,141.89,141.83,45.25098]
[1724243718883,7.0477,141.89,141.83,0.25098]
[1724243719085,13.35,141.91,141.83,0.25098]
[1724243719293,7.0487,141.87,141.83,0.25098]
[1724243719479,7.0485,141.88,141.83,0.25098]
[1724243720149,7.0477,141.89,141.83,0.25098]
[1724243720358,7.0477,141.89,141.83,45.25098]
[1724243721164,7.0482,141.88,141.83,45.25098]
[1724243721363,20.0,141.9,141.83,45.25098]
[1724243722883,7.0478,141.89,141.83,45.25098]
[1724243724262,7.0482,141.88,141.83,45.25098]
[1724243724468,7.0482,141.88,141.83,0.25098]
[1724243725881,7.0483,141.88,141.83,0.25098]
[1724243728298,7.0493,141.86,141.82,15.3708]
[1724243728460,7.0497,141.85,141.82,15.3708]
[1724243728666,13.35,141.85,141.81,6.2038]
[1724243728979,13.35,141.85,141.78,39.4578]
[1724243729864,7.0502,141.84,141.78,39.4578]
[1724243730690,17.6196,141.89,141.78,79.8608]
[1724243730869,7.0497,141.85,141.79,0.12549]
[1724243731662,7.0497,141.85,141.79,7.30358]
[1724243731989,7.0497,141.85,141.79,52.30358]
[1724243732184,7.0497,141.85,141.79,7.30358]
[1724243733191,7.0497,141.85,141.79,0.25098]
[1724243733779,7.0497,141.85,141.78,46.5107]
[1724243733963,7.0505,141.84,141.78,39.4578]
[1724243734489,7.0502,141.84,141.78,21.8258]
[1724243734675,7.0507,141.83,141.78,21.8258]
[1724243735464,17.6219,141.87,141.79,1.41044804]
[1724243735669,13.35,141.84,141.78,21.8258]
[1724243736190,7.0508,141.83,141.78,21.8258]
[1724243736963,7.0503,141.84,141.78,21.8258]
[1724243737200,7.0503,141.84,141.79,0.12549]
[1724243737503,387.8,141.89,141.79,1.66134969]
[1724243737694,7.0488,141.87,141.8,20.4018]
[1724243737879,7.0488,141.87,141.81,0.25098]
[1724243738074,7.05,141.85,141.79,45.0]
[1724243738295,7.05,141.85,141.8,0.25098]
[1724243738985,13.35,141.87,141.79,7.0525]
[1724243739183,20.0,141.86,141.79,7.0525]
[1724243739596,7.05,141.85,141.78,61.39683668]
[1724243739779,7.05,141.85,141.79,0.25098]
[1724243741094,7.05,141.85,141.79,7.30358]
[1724243742010,27.0493,141.86,141.79,8.71384848]
[1724243742191,27.0493,141.86,141.8,46.41020583]
[1724243742394,27.0493,141.86,141.81,0.25098]
[1724243742803,20.0,141.86,141.81,0.25098]
[1724243743114,7.0483,141.88,141.81,0.25098]
[1724243743293,20.0,141.87,141.81,7.30248]
[1724243743496,27.0488,141.87,141.81,7.30248]
[1724243744204,33.35,141.87,141.79,7.0525]
[1724243745120,33.35,141.87,141.78,35.1758]
[1724243745121,33.35,141.87,141.78,21.8258]
[1724243745319,7.0502,141.84,141.78,28.8788]
[1724243745618,20.3998,141.85,141.79,0.25098]
[1724243747115,7.0498,141.85,141.79,0.25098]
[1724243747827,7.0498,141.85,141.79,7.30358]
[1724243748993,7.0492,141.86,141.79,7.30358]
[1724243749198,7.0492,141.86,141.8,45.0]
[1724243749404,7.0492,141.86,141.81,0.25098]
[1724243750097,7.0492,141.86,141.8,0.25098]
[1724243750308,7.0492,141.86,141.8,7.30308]
[1724243751696,13.35,141.82,141.73,37.6386]
[1724243751903,20.0,141.81,141.76,13.35]
[1724243752203,29.6408,141.85,141.76,13.35]
[1724243752204,7.0511,141.82,141.76,13.35]
[1724243752418,7.0511,141.82,141.75,40.3413]
[1724243752805,7.0518,141.81,141.75,33.2869]
[1724243753431,7.0518,141.81,141.76,0.25098]
[1724243754630,7.0522,141.8,141.76,0.25098]
[1724243757439,7.0517,141.81,141.76,15.01159449]
[1724243757640,7.0517,141.81,141.77,45.0]
[1724243757803,7.0517,141.81,141.78,0.25098]
[1724243759135,30.9772,141.83,141.75,15.6506]
[1724243759348,51.5413,141.85,141.74,6.0058]
[1724243759349,7.0537,141.77,141.74,6.0058]
[1724243759638,7.0537,141.77,141.72,15.4167]
[1724243760140,7.0542,141.76,141.72,15.4167]
[1724243762043,7.0542,141.76,141.73,1.41105872]
[1724243762844,7.0538,141.77,141.72,16.95314499]
[1724243763027,7.0538,141.77,141.73,0.25098]
[1724243765314,7.0532,141.78,141.73,45.25098]
[1724243765915,7.0537,141.77,141.73,45.25098]
[1724243767414,7.0543,141.76,141.73,45.25098]
[1724243767622,7.0543,141.76,141.73,0.25098]
[1724243768635,7.0543,141.76,141.72,15.4167]
[1724243770124,7.0547,141.75,141.72,15.4167]
[1724243777158,7.0543,141.76,141.73,1.66206332]
[1724243777825,7.0543,141.76,141.73,0.25098]
[1724243779553,7.0547,141.75,141.72,15.4167]
[1724243781961,7.0553,141.74,141.72,15.4167]
[1724243782151,7.0556,141.73,141.69,16.1726]
[1724243782527,13.35,141.76,141.69,16.1726]
[1724243782528,7.0562,141.72,141.69,16.1726]
[1724243782821,7.057,141.71,141.69,16.1726]
[1724243783446,7.0563,141.72,141.69,17.58402272]
[1724243783856,30.9858,141.76,141.69,17.58402272]
[1724243784156,30.9858,141.76,141.69,30.93402272]
[1724243784157,7.0552,141.74,141.69,30.93402272]
[1724243784523,7.0552,141.74,141.7,0.25098]
[1724243784721,7.0552,141.74,141.7,1.66216735]
[1724243786029,7.0552,141.74,141.7,0.25098]
[1724243786729,33.35,141.75,141.7,0.25098]
[1724243787050,20.0,141.75,141.69,17.5839228]
[1724243787536,7.0555,141.74,141.69,16.1726]
[1724243787861,7.0555,141.74,141.7,1.41123185]
[1724243788646,7.0555,141.74,141.69,16.29809]
[1724243788937,20.0,141.75,141.7,1.66217999]
[1724243789151,20.0,141.75,141.7,45.25098]
[1724243789457,7.0542,141.76,141.7,0.25098]
[1724243789659,7.0542,141.76,141.7,45.25098]
[1724243789826,7.0542,141.76,141.7,46.66207317]
[1724243790032,20.4042,141.76,141.7,45.25098]
[1724243790335,7.0547,141.75,141.7,45.25098]
[1724243790956,7.0547,141.75,141.7,0.25098]
[1724243792359,7.0536,141.78,141.71,27.0561]
[1724243792654,7.0536,141.78,141.72,46.66184221]
[1724243793225,20.4025,141.8,141.73,6.3191]
[1724243793433,20.4025,141.8,141.74,62.86737666]
[1724243793652,7.0528,141.79,141.74,61.45668]
[1724243794153,7.0528,141.79,141.74,16.45668]
[1724243794358,7.0528,141.79,141.74,17.86747058]
[1724243795339,7.0522,141.8,141.74,17.86747058]
[1724243795737,7.0522,141.8,141.75,45.0]
[1724243795934,7.0522,141.8,141.76,1.66163028]
[1724243798769,13.35,141.82,141.74,16.2057]
[1724243798770,7.0527,141.79,141.74,16.2057]
[1724243799080,7.0527,141.79,141.75,0.25098]
[1724243799776,7.0527,141.79,141.75,1.66170645]
[1724243799973,7.0527,141.79,141.75,0.25098]
[1724243800460,7.0523,141.8,141.75,0.25098]
[1724243800781,7.0517,141.81,141.75,1.66163931]
[1724243800971,7.0517,141.81,141.75,46.66163931]
[1724243806359,7.051,141.83,141.76,20.404]
[1724243806563,7.051,141.83,141.77,46.66135675]
[1724243806983,403.8546,141.88,141.78,35.2304]
[1724243807275,7.0493,141.86,141.79,53.71329981]
[1724243807486,7.0493,141.86,141.79,52.30318]
[1724243807664,7.0497,141.85,141.8,1.41014264]
[1724243807855,7.0497,141.85,141.81,0.25098]
[1724243808260,7.0493,141.86,141.81,0.25098]
[1724243810784,7.0498,141.85,141.81,0.25098]
[1724243810953,7.0498,141.85,141.81,0.12549]
[1724243811155,7.0498,141.85,141.8,1.66113448]
[1724243812277,7.0498,141.85,141.8,0.25098]
[1724243812481,7.0504,141.84,141.8,0.25098]
[1724243812661,7.0504,141.84,141.78,52.8629]
[1724243812662,13.35,141.84,141.78,21.8804]
[1724243812864,7.0513,141.82,141.78,21.8804]
[1724243813069,13.35,141.84,141.78,21.8804]
[1724243813385,7.0518,141.81,141.78,21.8804]
[1724243814086,7.0518,141.81,141.78,15.7624]
[1724243814890,7.0523,141.8,141.74,35.6043]
[1724243815060,7.0523,141.8,141.74,22.2543]
[1724243816191,7.0523,141.8,141.75,0.12549]
[1724243816376,7.0523,141.8,141.75,0.25098]
[1724243818771,7.0523,141.8,141.74,22.2543]
[1724243819290,7.0532,141.78,141.74,22.2543]
[1724243820667,7.0536,141.77,141.74,15.8883]
[1724243821395,7.0546,141.76,141.74,15.8883]
[1724243821886,7.0546,141.76,141.71,6.1782]
[1724243824573,7.0546,141.76,141.71,7.58936286]
[1724243828687,7.0546,141.76,141.71,6.1782]
[1724243830103,7.0546,141.76,141.72,0.12549]
[1724243830980,20.4034,141.78,141.72,0.12549]
[1724243831185,27.0538,141.77,141.72,0.25098]
[1724243831397,27.0538,141.77,141.72,0.12549]
[1724243831580,27.0538,141.77,141.72,0.25098]
[1724243831786,7.0533,141.78,141.72,46.6619986]
[1724243832286,7.0533,141.78,141.72,45.25098]
[1724243833505,7.054,141.77,141.72,0.25098]
[1724243833709,7.054,141.77,141.72,0.12549]
[1724243834492,7.0533,141.78,141.72,1.53655843]
[1724243834698,27.0533,141.78,141.73,0.12549]
[1724243834901,20.0,141.78,141.73,13.47549]
[1724243835215,20.0,141.79,141.74,46.53624816]
[1724243835387,20.0,141.79,141.75,0.12549]
[1724243835788,27.0527,141.79,141.75,0.12549]
[1724243838001,20.0,141.79,141.75,0.12549]
[1724243838419,27.0529,141.79,141.75,0.12549]
[1724243838629,27.0529,141.79,141.74,0.12549]
[1724243838838,27.0529,141.79,141.74,0.25098]
[1724243839129,27.0529,141.79,141.74,1.66183003]
[1724243839428,7.0531,141.78,141.74,1.66183003]
[1724243842121,20.0,141.79,141.74,1.66183003]
[1724243842122,27.0527,141.79,141.74,0.25098]
[1724243842333,7.0527,141.79,141.74,46.66181862]
[1724243843228,27.0523,141.8,141.74,46.66181862]
[1724243843533,27.0523,141.8,141.75,15.5462]
[1724243843748,27.0523,141.8,141.76,1.53612827]
[1724243844228,27.0523,141.8,141.76,0.12549]
[1724243846916,27.0523,141.8,141.75,15.5462]
[1724243847744,7.0527,141.79,141.75,15.5462]
[1724243849846,7.0532,141.78,141.71,41.8879]
[1724243850531,7.0537,141.77,141.71,41.8879]
[1724243851235,7.0537,141.77,141.72,0.25098]
[1724243851952,7.0532,141.78,141.72,8.71808521]
[1724243852357,7.0528,141.79,141.73,8.46625661]
[1724243852556,7.0528,141.79,141.74,0.25098]
[1724243853242,7.0528,141.79,141.73,45.25098]
[1724243854347,27.0523,141.8,141.74,1.41082665]
[1724243854551,27.0523,141.8,141.75,0.12549]
[1724243855651,7.0526,141.79,141.75,0.12549]
[1724243855854,27.0523,141.8,141.75,0.12549]
[1724243856160,27.0523,141.8,141.75,1.66165632]
[1724243856957,27.0523,141.8,141.76,15.0694]
[1724243857154,27.0523,141.8,141.77,0.25098]
[1724243857155,20.0,141.8,141.77,0.25098]
[1724243857758,20.0,141.81,141.77,0.25098]
[1724243858970,7.0507,141.83,141.77,45.25098]
[1724243859764,7.36621174,141.87,141.78,1.4103362]
[1724243859963,25.42500024,141.89,141.8,15.511]
[1724243859964,13.35,141.88,141.8,15.511]
[1724243860169,13.35,141.88,141.81,1.66105468]
[1724243860354,7.0495,141.86,141.81,1.66105468]
[1724243860673,7.0495,141.86,141.81,46.66105468]
[1724243860853,7.0495,141.86,141.81,1.66105468]
[1724243861259,20.0,141.85,141.81,1.66105468]
[1724243863680,20.0,141.85,141.81,0.25098]
[1724243863860,27.0498,141.85,141.8,15.511]
[1724243864870,27.0498,141.85,141.8,16.921201]
[1724243865074,27.0498,141.85,141.81,0.25098]
[1724243866160,7.0493,141.86,141.81,6.80708]
[1724243868077,20.3993,141.86,141.81,6.5561]
[1724243868769,7.0497,141.85,141.81,6.5561]
[1724243871490,7.0497,141.85,141.81,7.96630147]
[1724243871680,7.0492,141.86,141.82,0.12549]
[1724243872672,7.0488,141.87,141.82,1.53555165]
[1724243872874,411.08524653,141.92,141.83,13.47549]
[1724243873079,7.0477,141.89,141.84,1.53531939]
[1724243875185,7.0477,141.89,141.84,0.12549]
[1724243875390,7.0487,141.87,141.83,0.12549]
[1724243875692,7.0487,141.87,141.82,0.25098]
[1724243875870,7.0492,141.86,141.81,6.5561]
[1724243877094,13.35,141.88,141.81,6.5561]
[1724243877472,7.0495,141.86,141.81,6.5561]
[1724243880299,7.0497,141.85,141.81,6.5561]
[1724243880672,17.6195,141.89,141.81,6.5561]
[1724243880673,7.0495,141.86,141.81,6.5561]
[1724243881804,7.0491,141.87,141.81,7.96617908]
[1724243882087,7.0492,141.86,141.82,0.25098]
[1724243884779,7.0492,141.86,141.82,1.6609751]
[1724243887383,7.0489,141.87,141.82,1.66097829]
[1724243887584,33.5349,141.92,141.82,1.66097829]
[1724243887585,33.5349,141.92,141.82,46.66097829]
[1724243887792,33.35,141.91,141.82,46.66097829]
[1724243888176,7.048,141.89,141.82,53.71197829]
[1724243888398,7.0483,141.88,141.82,45.25098]
[1724243888590,7.0488,141.87,141.82,45.25098]
[1724243891015,7.0493,141.86,141.81,6.5561]
[1724243891308,7.0497,141.85,141.81,6.5561]
[1724243891880,7.0502,141.84,141.81,6.5561]
[1724243892123,7.0498,141.85,141.81,6.5561]
[1724243894303,7.0492,141.86,141.82,0.25098]
[1724243894703,7.0492,141.86,141.82,1.66101117]
[1724243896217,7.0492,141.86,141.82,0.25098]
[1724243896622,7.0497,141.85,141.81,6.5561]
[1724243899631,7.0497,141.85,141.81,7.96621228]
[1724243899802,7.0497,141.85,141.82,0.12549]
[1724243900128,7.0493,141.86,141.82,1.66104192]
[1724243902797,7.0493,141.86,141.82,0.25098]
[1724243904032,7.0493,141.86,141.82,1.6609713]
[1724243904909,7.0488,141.87,141.82,1.6609713]
[1724243905119,20.0,141.86,141.82,8.7120713]
[1724243905314,7.0482,141.88,141.82,8.7120713]
[1724243905520,20.0,141.87,141.82,8.7120713]
[1724243905829,7.0482,141.88,141.82,8.7120713]
[1724243906026,7.0482,141.88,141.83,45.0]
[1724243906335,7.0482,141.88,141.84,0.25098]
[1724243906542,7.0482,141.88,141.84,0.12549]
[1724243907211,7.0482,141.88,141.83,0.12549]
[1724243907525,7.0482,141.88,141.83,0.25098]
[1724243907838,7.0482,141.88,141.83,1.66084549]
[1724243912045,33.5348,141.92,141.83,8.71134549]
[1724243912332,7.0463,141.92,141.86,6.3512]
[1724243912529,7.0463,141.92,141.87,1.66044468]
[1724243913525,7.0463,141.92,141.87,46.66044468]
[1724243914009,7.0463,141.92,141.87,45.25098]
[1724243916455,7.0463,141.92,141.87,0.25098]
[1724243916910,7.0463,141.92,141.87,1.66046149]
[1724243917428,7.0463,141.92,141.87,46.66046149]
[1724243918853,7.0463,141.92,141.87,45.25098]
[1724243919753,7.0463,141.92,141.88,1.40942767]
[1724243921942,7.0463,141.92,141.88,17.51152767]
[1724243922251,7.0463,141.92,141.89,0.12549]
[1724243923866,7.0458,141.93,141.89,0.25098]
[1724243924351,7.0463,141.92,141.88,16.1021]
[1724243924850,17.6134,141.94,141.88,16.1021]
[1724243925053,7.0477,141.89,141.86,6.3512]
[1724243925257,13.35,141.9,141.84,15.7644]
[1724243926032,7.0478,141.89,141.84,17.17420388]
[1724243926546,7.0483,141.88,141.84,15.7644]
[1724243928957,20.3983,141.88,141.84,15.7644]
[1724243929551,7.0487,141.87,141.84,15.7644]
[1724243930859,7.0483,141.88,141.84,15.7644]
[1724243931359,7.0487,141.87,141.84,15.7644]
[1724243936553,20.3983,141.88,141.84,15.7644]
[1724243937169,13.35,141.86,141.8,22.488]
[1724243937342,27.0498,141.85,141.81,0.25098]
[1724243937854,7.0503,141.84,141.81,0.25098]
[1724243938255,7.0507,141.83,141.8,22.488]
[1724243939257,7.0503,141.84,141.8,22.488]
[1724243939445,20.0,141.85,141.8,22.488]
[1724243939646,33.35,141.87,141.81,0.12549]
[1724243940152,7.05,141.85,141.81,0.12549]
[1724243942082,7.0492,141.86,141.81,1.6611106]
[1724243942271,20.0,141.85,141.81,0.25098]
[1724243942475,20.0,141.85,141.81,45.25098]
[1724243943153,7.0492,141.86,141.81,45.25098]
[1724243943356,7.0488,141.87,141.82,1.40996106]
[1724243943650,20.0,141.86,141.83,0.12549]
[1724243943854,20.0,141.86,141.83,1.53542695]
[1724243944761,20.0,141.86,141.83,0.12549]
[1724243944971,7.0483,141.88,141.83,0.25098]
[1724243946866,7.0483,141.88,141.82,0.25098]
[1724243948681,7.0483,141.88,141.82,1.66084259]
[1724243951611,7.0483,141.88,141.82,0.25098]
[1724243954087,7.0488,141.87,141.82,0.25098]
[1724243956222,7.0488,141.87,141.82,1.66083798]
[1724243956901,7.0488,141.87,141.82,0.25098]
[1724243957102,7.0492,141.86,141.82,0.25098]
[1724243958588,20.3992,141.86,141.82,0.12549]
[1724243958811,20.3992,141.86,141.81,0.25098]
[1724243961413,7.0488,141.87,141.81,0.25098]
[1724243961596,7.0488,141.87,141.81,52.30258]
[1724243962288,7.0488,141.87,141.82,1.4099223]
[1724243962700,7.0488,141.87,141.81,52.30258]
[1724243963820,7.0492,141.86,141.81,45.25098]
[1724243965925,7.0488,141.87,141.81,52.30258]
[1724243966098,7.0488,141.87,141.81,45.25098]
[1724243967012,13.35,141.88,141.81,45.25098]
[1724243967329,20.0,141.87,141.81,0.25098]
[1724243967699,19.84,141.87,141.81,0.25098]
[1724243967899,7.0497,141.85,141.81,0.25098]
[1724243970608,7.0502,141.84,141.8,22.488]
[1724243971526,7.0498,141.85,141.8,22.488]
[1724243976019,26.8891,141.87,141.8,29.5397]
[1724243976234,26.8891,141.87,141.81,45.25098]
[1724243978857,26.8891,141.87,141.81,52.30258]
[1724243979045,33.19,141.87,141.8,22.488]
[1724243979551,19.84,141.87,141.8,22.488]
[1724243979756,13.35,141.86,141.8,22.488]
[1724243979957,7.0498,141.85,141.8,22.488]
[1724243980456,7.0498,141.85,141.81,0.25098]
[1724243981945,7.0493,141.86,141.81,0.25098]
[1724243982150,7.0493,141.86,141.81,46.66098553]